fUSD/lending_fUSD_20250630
["ID","MTS","AMOUNT","RATE_DAILY","PERIOD"]
[368654802,1751267472714,-986.67,0.00016986,2]
[368654803,1751267472722,-490.0,0.00016986,2]
[368654804,1751267472731,-490.0,0.00016986,2]
[368654805,1751267472741,-534.31,0.00016986,2]
[368654806,1751267472750,-792.03,0.00016986,2]
[368654807,1751267472759,-490.0,0.00016986,2]
[368654808,1751267472768,-490.0,0.00016986,2]
[368654809,1751267472777,-2907.37,0.00016986,2]
[368654810,1751267472786,-1139.12,0.00016986,2]
[368654811,1751267472795,-490.0,0.00016986,2]
[368654812,1751267472805,-1525.18,0.00016986,2]
[368654813,1751267472814,-1083.01,0.00016986,2]
[368654814,1751267472823,-711.7,0.00016986,2]
[368654815,1751267472832,-490.0,0.00016986,2]
[368654816,1751267472841,-805.1,0.00016986,2]
[368654817,1751267472850,-1219.45,0.00016986,2]
[368654818,1751267472859,-2489.82,0.00016986,2]
[368654819,1751267472868,-490.0,0.00016986,2]
[368654820,1751267472878,-490.0,0.00016986,2]
[368654821,1751267472887,-2232.05,0.00016986,2]
[368654822,1751267472896,-1110.71,0.00016986,2]
[368654823,1751267472906,-905.33,0.00016986,2]
[368654824,1751267472916,-1206.95,0.00016986,2]
[368654825,1751267472925,-490.0,0.00016986,2]
[368654826,1751267472934,-523.23,0.00016986,2]
[368654827,1751267472943,-490.0,0.00016986,2]
[368654828,1751267472952,-1032.86,0.00016986,2]
[368654829,1751267472962,-1399.46,0.00016986,2]
[368654830,1751267472971,-2155.96,0.00016986,2]
[368654831,1751267472981,-940.15,0.00016986,2]
[368654832,1751267472990,-798.99,0.00016986,2]
[368654833,1751267473000,-490.0,0.00016986,2]
[368654834,1751267473010,-1151.4,0.00016986,2]
[368654835,1751267473019,-1411.63,0.00016986,2]
[368654836,1751267473029,-490.0,0.00016986,2]
[368654837,1751267473039,-490.0,0.00016986,2]
[368654838,1751267473049,-490.0,0.00016986,2]
[368654839,1751267473058,-490.0,0.00016986,2]
[368654840,1751267473068,-3267.39,0.00016986,2]
[368654841,1751267473078,-1104.08,0.00016986,2]
[368654842,1751267473089,-563.52,0.00016986,2]
[368654843,1751267473099,-701.32,0.00016986,2]
[368654844,1751267473108,-491.33,0.00016986,2]
[368654845,1751267473118,-946.01,0.00016986,2]
[368654846,1751267473127,-497.44866681,0.00016986,2]
[368654847,1751267473138,-1143.09,0.00016986,2]
[368654848,1751267473148,-2215.67,0.00016986,2]
[368654849,1751267473158,-2238.17,0.00016986,2]
[368654850,1751267473169,-490.0,0.00016986,2]
[368654851,1751267473180,-490.0,0.00016986,2]
[368654852,1751267473190,-1642.95,0.00016986,2]
[368654853,1751267473200,-3529.66,0.00016986,2]
[368654854,1751267473210,-1031.88,0.00016986,2]
[368654855,1751267473219,-490.0,0.00016986,2]
[368654856,1751267473228,-1010.2,0.00016986,2]
[368654857,1751267473238,-667.33,0.00016986,2]
[368654858,1751267473247,-1712.17,0.00016986,2]
[368654859,1751267473257,-418.24019804,0.00016986,2]
[368654860,1751267473267,-626.08,0.00016986,2]
[368654861,1751267473276,-860.14,0.00016986,2]
[368654862,1751267473286,-490.0,0.00016986,2]
[368654863,1751267473296,-3656.02,0.00016986,2]
[368654864,1751267473309,-834.59,0.00016986,2]
[368654865,1751267473319,-490.0,0.00016986,2]
[368654866,1751267473328,-490.0,0.00016986,2]
[368654867,1751267473338,-490.0,0.00016986,2]
[368654868,1751267473354,-1030.93,0.00016986,2]
[368654869,1751267473364,-490.0,0.00016986,2]
[368654870,1751267473374,-490.0,0.00016986,2]
[368654871,1751267473384,-559.77,0.00016986,2]
[368654872,1751267473394,-490.0,0.00016986,2]
[368654873,1751267473403,-3042.8,0.00016986,2]
[368654874,1751267473413,-490.0,0.00016986,2]
[368654875,1751267473422,-490.0,0.00016986,2]
[368654876,1751267473432,-710.3,0.00016986,2]
[368654877,1751267473442,-490.0,0.00016986,2]
[368654878,1751267473451,-959.3,0.00016986,2]
[368654879,1751267473461,-490.0,0.00016986,2]
[368654880,1751267473471,-2433.91,0.00016986,2]
[368654881,1751267473480,-2258.69,0.00016986,2]
[368654882,1751267473489,-499.19,0.00016986,2]
[368654883,1751267473499,-1546.51,0.00016986,2]
[368654884,1751267473508,-490.0,0.00016986,2]
[368654885,1751267473517,-490.0,0.00016986,2]
[368654886,1751267473526,-490.0,0.00016986,2]
[368654887,1751267473535,-683.3,0.00016986,2]
[368654888,1751267473545,-1887.4,0.00016986,2]
[368654889,1751267473554,-490.0,0.00016986,2]
[368654890,1751267473563,-490.0,0.00016986,2]
[368654891,1751267473573,-1233.56,0.00016986,2]
[368654892,1751267473583,-533.17,0.00016986,2]
[368654893,1751267473593,-490.0,0.00016986,2]
[368654894,1751267473603,-1913.05,0.00016986,2]
[368654895,1751267473614,-490.0,0.00016986,2]
[368654896,1751267473624,-934.44,0.00016986,2]
[368654897,1751267473635,-459.44036744,0.00016986,2]
[368654898,1751267473646,-557.85,0.00016986,2]
[368654899,1751267473657,-490.0,0.00016986,2]
[368654900,1751267473668,-752.53,0.00016986,2]
[368654901,1751267473678,-731.26,0.00016986,2]
[368654902,1751267473688,-490.0,0.00016986,2]
[368654903,1751267473697,-1839.15,0.00016986,2]
[368654904,1751267473707,-1061.04,0.00016986,2]
[368654905,1751267473716,-1002.9,0.00016986,2]
[368654906,1751267473726,-2501.37,0.00016986,2]
[368654907,1751267473735,-490.0,0.00016986,2]
[368654908,1751267473745,-609.73,0.00016986,2]
[368654909,1751267473755,-490.0,0.00016986,2]
[368654910,1751267473764,-1343.9,0.00016986,2]
[368654911,1751267473774,-490.0,0.00016986,2]
[368654912,1751267473785,-2212.24,0.00016986,2]
[368654913,1751267473794,-516.46534871,0.00016986,2]
[368654914,1751267473804,-764.05,0.00016986,2]
[368654915,1751267473814,-490.0,0.00016986,2]
[368654916,1751267473824,-490.0,0.00016986,2]
[368654917,1751267473833,-490.0,0.00016986,2]
[368654918,1751267473843,-490.0,0.00016986,2]
[368654919,1751267473853,-2808.96,0.00016986,2]
[368654920,1751267473863,-662.38,0.00016986,2]
[368654921,1751267473873,-671.65,0.00016986,2]
[368654922,1751267473883,-490.0,0.00016986,2]
[368654923,1751267473893,-490.0,0.00016986,2]
[368654924,1751267473903,-507.67,0.00016986,2]
[368654925,1751267473914,-517.86,0.00016986,2]
[368654926,1751267473923,-490.0,0.00016986,2]
[368654927,1751267473933,-2145.41,0.00016986,2]
[368654928,1751267473943,-490.0,0.00016986,2]
[368654929,1751267473953,-490.0,0.00016986,2]
[368654930,1751267473963,-672.85,0.00016986,2]
[368654931,1751267473973,-2284.2,0.00016986,2]
[368654932,1751267473982,-1011.0,0.00016986,2]
[368654933,1751267473992,-490.0,0.00016986,2]
[368654934,1751267474001,-751.27,0.00016986,2]
[368654935,1751267474011,-490.0,0.00016986,2]
[368654936,1751267474020,-490.0,0.00016986,2]
[368654937,1751267474030,-1491.73,0.00016986,2]
[368654938,1751267474039,-875.71,0.00016986,2]
[368654939,1751267474049,-490.0,0.00016986,2]
[368654940,1751267474058,-543.73,0.00016986,2]
[368654941,1751267474068,-2953.96,0.00016986,2]
[368654942,1751267474078,-772.44,0.00016986,2]
[368654943,1751267474089,-1367.71,0.00016986,2]
[368654944,1751267474099,-714.44,0.00016986,2]
[368654945,1751267474109,-490.0,0.00016986,2]
[368654946,1751267474118,-1494.37,0.00016986,2]
[368654947,1751267474129,-663.84,0.00016986,2]
[368654948,1751267474138,-490.0,0.00016986,2]
[368654949,1751267474148,-1079.29,0.00016986,2]
[368654950,1751267474158,-3356.8,0.00016986,2]
[368654951,1751267474169,-490.0,0.00016986,2]
[368654952,1751267474179,-3925.21,0.00016986,2]
[368654953,1751267474189,-510.15,0.00016986,2]
[368654954,1751267474199,-3282.04,0.00016986,2]
[368654955,1751267474209,-490.0,0.00016986,2]
[368654956,1751267474218,-1272.02,0.00016986,2]
[368654957,1751267474228,-490.0,0.00016986,2]
[368654958,1751267474238,-490.0,0.00016986,2]
[368654959,1751267474248,-568.77,0.00016986,2]
[368654960,1751267474258,-273.39353025,0.00016986,2]
[368654961,1751267474267,-2464.47,0.00016986,2]
[368654962,1751267474277,-490.0,0.00016986,2]
[368654963,1751267474287,-490.0,0.00016986,2]
[368654964,1751267474297,-2472.06,0.00016986,2]
[368654965,1751267474307,-657.57,0.00016986,2]
[368654966,1751267474317,-490.0,0.00016986,2]
[368654967,1751267474327,-1260.99,0.00016986,2]
[368654968,1751267474336,-490.0,0.00016986,2]
[368654969,1751267474346,-490.0,0.00016986,2]
[368654970,1751267474356,-575.9,0.00016986,2]
[368654971,1751267474366,-3486.76,0.00016986,2]
[368654972,1751267474376,-650.41,0.00016986,2]
[368654973,1751267474386,-490.0,0.00016986,2]
[368654974,1751267474396,-633.05242804,0.00016986,2]
[368654975,1751267474406,-569.55,0.00016986,2]
[368654976,1751267474416,-441.71918371,0.00016986,2]
[368654977,1751267474426,-490.0,0.00016986,2]
[368654978,1751267474436,-1177.29,0.00016986,2]
[368654979,1751267474446,-490.0,0.00016986,2]
[368654980,1751267474455,-1634.31,0.00016986,2]
[368654981,1751267474466,-3740.54,0.00016986,2]
[368654982,1751267474476,-625.76,0.00016986,2]
[368654983,1751267474487,-490.0,0.00016986,2]
[368654984,1751267474497,-740.73,0.00016986,2]
[368654985,1751267474507,-548.01876783,0.00016986,2]
[368654986,1751267474516,-490.0,0.00016986,2]
[368654987,1751267474527,-951.92,0.00016986,2]
[368654988,1751267474536,-519.44,0.00016986,2]
[368654989,1751267474547,-490.0,0.00016986,2]
[368654990,1751267474557,-490.0,0.00016986,2]
[368654991,1751267474568,-1372.31,0.00016986,2]
[368654992,1751267474577,-490.0,0.00016986,2]
[368654993,1751267474587,-490.0,0.00016986,2]
[368654994,1751267474597,-326.50770705,0.00016986,2]
[368654995,1751267474607,-586.15,0.00016986,2]
[368654996,1751267474617,-490.0,0.00016986,2]
[368654997,1751267474627,-945.19,0.00016986,2]
[368654998,1751267474636,-1141.47,0.00016986,2]
[368654999,1751267474646,-490.0,0.00016986,2]
[368655000,1751267474656,-981.2,0.00016986,2]
[368655001,1751267474667,-3175.15,0.00016986,2]
[368655002,1751267474676,-490.0,0.00016986,2]
[368655003,1751267474686,-490.0,0.00016986,2]
[368655004,1751267474696,-832.07,0.00016986,2]
[368655005,1751267474705,-1170.01,0.00016986,2]
[368655006,1751267474715,-531.2,0.00016986,2]
[368655007,1751267474725,-584.93,0.00016986,2]
[368655008,1751267474734,-490.0,0.00016986,2]
[368655009,1751267474744,-490.0,0.00016986,2]
[368655010,1751267474754,-490.0,0.00016986,2]
[368655011,1751267474764,-2521.62,0.00016986,2]
[368655012,1751267474775,-490.0,0.00016986,2]
[368655013,1751267474784,-1252.54,0.00016986,2]
[368655014,1751267474794,-490.0,0.00016986,2]
[368655015,1751267474804,-922.18,0.00016986,2]
[368655016,1751267474814,-599.14,0.00016986,2]
[368655017,1751267474823,-490.0,0.00016986,2]
[368655018,1751267474833,-3136.28,0.00016986,2]
[368655019,1751267474842,-3097.05,0.00016986,2]
[368655020,1751267474852,-511.63,0.00016986,2]
[368655021,1751267474862,-557.59,0.00016986,2]
[368655022,1751267474872,-490.0,0.00016986,2]
[368655023,1751267474881,-490.0,0.00016986,2]
[368655024,1751267474891,-490.0,0.00016986,2]
[368655025,1751267474901,-490.0,0.00016986,2]
[368655026,1751267474912,-1082.72,0.00016986,2]
[368655027,1751267474924,-490.0,0.00016986,2]
[368655028,1751267474934,-490.0,0.00016986,2]
[368655029,1751267474944,-490.0,0.00016986,2]
[368655030,1751267474954,-490.0,0.00016986,2]
[368655031,1751267474964,-3323.29,0.00016986,2]
[368655032,1751267474974,-527.5278609,0.00016986,2]
[368655033,1751267474984,-1275.4,0.00016986,2]
[368655034,1751267474994,-896.09,0.00016986,2]
[368655035,1751267475004,-7352.81,0.00016986,2]
[368655036,1751267475013,-490.0,0.00016986,2]
[368655037,1751267475023,-1187.38,0.00016986,2]
[368655038,1751267475034,-490.0,0.00016986,2]
[368655039,1751267475045,-557.12215806,0.00016986,2]
[368655040,1751267475056,-661.4,0.00016986,2]
[368655041,1751267475067,-947.26,0.00016986,2]
[368655042,1751267475076,-3003.1,0.00016986,2]
[368655043,1751267475087,-2729.68,0.00016986,2]
[368655044,1751267475099,-697.57,0.00016986,2]
[368655045,1751267475109,-490.0,0.00016986,2]
[368655046,1751267475119,-506.42,0.00016986,2]
[368655047,1751267475131,-1404.12,0.00016986,2]
[368655048,1751267475141,-490.0,0.00016986,2]
[368655049,1751267475379,-699.68,0.00016986,2]
[368655050,1751267475389,-1564.05,0.00016986,2]
[368655051,1751267475399,-845.57,0.00016986,2]
[368655052,1751267475408,-490.0,0.00016986,2]
[368655053,1751267475418,-2174.56,0.00016986,2]
[368655054,1751267475428,-490.0,0.00016986,2]
[368655055,1751267475438,-490.0,0.00016986,2]
[368655056,1751267475447,-3326.54,0.00016986,2]
[368655057,1751267475457,-738.46,0.00016986,2]
[368655058,1751267475466,-560.058498,0.00016986,2]
[368655059,1751267475476,-826.07,0.00016986,2]
[368655060,1751267475486,-2866.33,0.00016986,2]
[368655061,1751267475496,-490.0,0.00016986,2]
[368655062,1751267475506,-600.0,0.00016986,2]
[368655063,1751267475516,-739.44,0.00016986,2]
[368655064,1751267475526,-490.0,0.00016986,2]
[368655065,1751267475535,-490.0,0.00016986,2]
[368655066,1751267475545,-490.0,0.00016986,2]
[368655067,1751267475555,-490.0,0.00016986,2]
[368655068,1751267475564,-2893.93,0.00016986,2]
[368655069,1751267475574,-1384.95,0.00016986,2]
[368655070,1751267475584,-813.02,0.00016986,2]
[368655071,1751267475593,-1928.24,0.00016986,2]
[368655072,1751267475603,-300.53445253,0.00016986,2]
[368655073,1751267475612,-3359.08,0.00016986,2]
[368655074,1751267475622,-490.0,0.00016986,2]
[368655075,1751267475632,-735.48,0.00016986,2]
[368655076,1751267475641,-490.0,0.00016986,2]
[368655077,1751267475650,-3125.15,0.00016986,2]
[368655078,1751267475660,-923.54,0.00016986,2]
[368655079,1751267475670,-490.0,0.00016986,2]
[368655080,1751267475680,-2403.69,0.00016986,2]
[368655081,1751267475690,-1966.1,0.00016986,2]
[368655082,1751267475699,-490.0,0.00016986,2]
[368655083,1751267475710,-966.44,0.00016986,2]
[368655084,1751267475720,-490.0,0.00016986,2]
[368655085,1751267475729,-1873.07,0.00016986,2]
[368655086,1751267475738,-1907.47,0.00016986,2]
[368655087,1751267475747,-524.51,0.00016986,2]
[368655088,1751267475756,-490.0,0.00016986,2]
[368655089,1751267475766,-490.0,0.00016986,2]
[368655090,1751267475775,-490.0,0.00016986,2]
[368655091,1751267475785,-2103.92,0.00016986,2]
[368655092,1751267475794,-536.32,0.00016986,2]
[368655093,1751267475804,-490.0,0.00016986,2]
[368655094,1751267475813,-490.0,0.00016986,2]
[368655095,1751267475823,-490.0,0.00016986,2]
[368655096,1751267475833,-678.27,0.00016986,2]
[368655097,1751267475842,-3108.02,0.00016986,2]
[368655098,1751267475852,-2999.28,0.00016986,2]
[368655099,1751267475861,-1097.93,0.00016986,2]
[368655100,1751267475871,-490.0,0.00016986,2]
[368655101,1751267475880,-490.0,0.00016986,2]
[368655102,1751267475889,-490.0,0.00016986,2]
[368655103,1751267475899,-490.0,0.00016986,2]
[368655104,1751267475908,-2756.49,0.00016986,2]
[368655105,1751267475918,-490.0,0.00016986,2]
[368655106,1751267475927,-554.82,0.00016986,2]
[368655107,1751267475937,-490.0,0.00016986,2]
[368655108,1751267475946,-695.5,0.00016986,2]
[368655109,1751267475955,-3034.87,0.00016986,2]
[368655110,1751267475964,-321.34975731,0.00016986,2]
[368655111,1751267475974,-1346.34,0.00016986,2]
[368655112,1751267475983,-490.0,0.00016986,2]
[368655113,1751267475992,-490.0,0.00016986,2]
[368655114,1751267476002,-1250.9,0.00016986,2]
[368655115,1751267476011,-1219.05,0.00016986,2]
[368655116,1751267476020,-490.0,0.00016986,2]
[368655117,1751267476029,-490.0,0.00016986,2]
[368655118,1751267476039,-582.15,0.00016986,2]
[368655119,1751267476048,-490.0,0.00016986,2]
[368655120,1751267476058,-490.0,0.00016986,2]
[368655121,1751267476067,-490.0,0.00016986,2]
[368655122,1751267476077,-1944.08,0.00016986,2]
[368655123,1751267476088,-1112.99,0.00016986,2]
[368655124,1751267476103,-1197.16,0.00016986,2]
[368655125,1751267476113,-490.0,0.00016986,2]
[368655126,1751267476123,-490.0,0.00016986,2]
[368655127,1751267476134,-2825.96,0.00016986,2]
[368655128,1751267476143,-1879.0,0.00016986,2]
[368655129,1751267476153,-1953.12,0.00016986,2]
[368655130,1751267476164,-573.53,0.00016986,2]
[368655131,1751267476175,-573.53,0.00016986,2]
[368655132,1751267476185,-1352.3,0.00016986,2]
[368655133,1751267476194,-490.0,0.00016986,2]
[368655134,1751267476204,-2294.09,0.00016986,2]
[368655135,1751267476213,-881.9,0.00016986,2]
[368655136,1751267476222,-490.0,0.00016986,2]
[368655137,1751267476232,-1641.38,0.00016986,2]
[368655138,1751267476241,-3049.66,0.00016986,2]
[368655139,1751267476251,-1911.12,0.00016986,2]
[368655140,1751267476261,-5842.13,0.00016986,2]
[368655141,1751267476270,-3084.47,0.00016986,2]
[368655142,1751267476280,-3153.57,0.00016986,2]
[368655143,1751267476289,-490.0,0.00016986,2]
[368655144,1751267476299,-490.0,0.00016986,2]
[368655145,1751267476309,-490.0,0.00016986,2]
[368655146,1751267476318,-1836.58,0.00016986,2]
[368655147,1751267476328,-490.0,0.00016986,2]
[368655148,1751267476337,-490.0,0.00016986,2]
[368655149,1751267476346,-490.0,0.00016986,2]
[368655150,1751267476356,-490.0,0.00016986,2]
[368655151,1751267476370,-1652.44,0.00016986,2]
[368655152,1751267476380,-548.49844986,0.00016986,2]
[368655153,1751267476391,-571.59,0.00016986,2]
[368655154,1751267476400,-2001.23,0.00016986,2]
[368655155,1751267476410,-867.35,0.00016986,2]
[368655156,1751267476421,-490.0,0.00016986,2]
[368655157,1751267476431,-1386.78,0.00016986,2]
[368655158,1751267476442,-490.0,0.00016986,2]
[368655159,1751267476452,-1794.39,0.00016986,2]
[368655160,1751267476462,-917.79,0.00016986,2]
[368655161,1751267476473,-656.75,0.00016986,2]
[368655162,1751267476483,-4421.25,0.00016986,2]
[368655163,1751267476493,-1522.34,0.00016986,2]
[368655164,1751267476503,-4186.63,0.00016986,2]
[368655165,1751267476514,-490.0,0.00016986,2]
[368655166,1751267476524,-2340.75,0.00016986,2]
[368655167,1751267476534,-1246.09,0.00016986,2]
[368655168,1751267476544,-490.0,0.00016986,2]
[368655169,1751267476555,-490.0,0.00016986,2]
[368655170,1751267476565,-1009.92,0.00016986,2]
[368655171,1751267476575,-490.0,0.00016986,2]
[368655172,1751267476585,-6202.82,0.00016986,2]
[368655173,1751267476595,-539.61,0.00016986,2]
[368655174,1751267476605,-490.0,0.00016986,2]
[368655175,1751267476616,-1115.43,0.00016986,2]
[368655176,1751267476627,-2421.84,0.00016986,2]
[368655177,1751267476638,-490.0,0.00016986,2]
[368655178,1751267476648,-490.0,0.00016986,2]
[368655179,1751267476659,-490.0,0.00016986,2]
[368655180,1751267476669,-2848.96,0.00016986,2]
[368655181,1751267476679,-2682.09,0.00016986,2]
[368655182,1751267476689,-688.18,0.00016986,2]
[368655183,1751267476699,-1286.7,0.00016986,2]
[368655184,1751267476708,-855.05,0.00016986,2]
[368655185,1751267476718,-490.0,0.00016986,2]
[368655186,1751267476729,-490.0,0.00016986,2]
[368655187,1751267476738,-2176.19,0.00016986,2]
[368655188,1751267476748,-11614.73,0.00016986,2]
[368655189,1751267476758,-490.0,0.00016986,2]
[368655190,1751267476768,-490.0,0.00016986,2]
[368655191,1751267476778,-490.0,0.00016986,2]
[368655192,1751267476787,-2228.28,0.00016986,2]
[368655193,1751267476797,-731.54,0.00016986,2]
[368655194,1751267476806,-5327.39,0.00016986,2]
[368655195,1751267476815,-1583.67,0.00016986,2]
[368655196,1751267476825,-1018.1,0.00016986,2]
[368655197,1751267476835,-4328.93,0.00016986,2]
[368655198,1751267476845,-490.0,0.00016986,2]
[368655199,1751267476855,-6135.76,0.00016986,2]
[368655200,1751267476864,-490.0,0.00016986,2]
[368655201,1751267476874,-490.0,0.00016986,2]
[368655202,1751267476883,-1323.91,0.00016986,2]
[368655203,1751267476893,-516.29,0.00016986,2]
[368655204,1751267476903,-490.0,0.00016986,2]
[368655205,1751267476913,-1718.62,0.00016986,2]
[368655206,1751267476923,-8554.16,0.00016986,2]
[368655207,1751267476933,-490.0,0.00016986,2]
[368655208,1751267476943,-1225.99,0.00016986,2]
[368655209,1751267476952,-160391.08,0.00016986,2]
[368655210,1751267476962,-2854.15,0.00016986,2]
[368655211,1751267476972,-2132.17,0.00016986,2]
[368655212,1751267476982,-522.1,0.00016986,2]
[368655213,1751267476993,-490.0,0.00016986,2]
[368655214,1751267477003,-7346.84,0.00016986,2]
[368655215,1751267477012,-550.81,0.00016986,2]
[368655216,1751267477022,-655.13,0.00016986,2]
[368655217,1751267477032,-2004.02,0.00016986,2]
[368655218,1751267477041,-490.0,0.00016986,2]
[368655219,1751267477051,-490.0,0.00016986,2]
[368655220,1751267477060,-490.0,0.00016986,2]
[368655221,1751267477070,-1237.87,0.00016986,2]
[368655222,1751267477080,-490.0,0.00016986,2]
[368655223,1751267477092,-1072.91,0.00016986,2]
[368655224,1751267477102,-1775.0,0.00016986,2]
[368655225,1751267477111,-3722.51,0.00016986,2]
[368655226,1751267477121,-1254.94,0.00016986,2]
[368655227,1751267477131,-4275.53,0.00016986,2]
[368655228,1751267477141,-1435.29,0.00016986,2]
[368655229,1751267477151,-1303.68,0.00016986,2]
[368655230,1751267477161,-790.68,0.00016986,2]
[368655231,1751267477171,-2487.65,0.00016986,2]
[368655232,1751267477181,-490.0,0.00016986,2]
[368655233,1751267477191,-490.0,0.00016986,2]
[368655234,1751267477200,-6093.36,0.00016986,2]
[368655235,1751267477210,-360.0,0.00016986,2]
[368655236,1751267477219,-490.0,0.00016986,2]
[368655237,1751267477228,-154.78187708,0.00016986,2]
[368655238,1751267477237,-7646.99,0.00016986,2]
[368655239,1751267477247,-923.47,0.00016986,2]
[368655240,1751267477256,-2019.83,0.00016986,2]
[368655241,1751267477266,-1301.38,0.00016986,2]
[368655242,1751267477275,-490.0,0.00016986,2]
[368655243,1751267477284,-490.0,0.00016986,2]
[368655244,1751267477294,-490.0,0.00016986,2]
[368655245,1751267477303,-490.0,0.00016986,2]
[368655246,1751267477312,-490.0,0.00016986,2]
[368655247,1751267477322,-1960.27,0.00016986,2]
[368655248,1751267477332,-490.0,0.00016986,2]
[368655249,1751267477342,-490.0,0.00016986,2]
[368655250,1751267477352,-2775.24,0.00016986,2]
[368655251,1751267477362,-2123.68,0.00016986,2]
[368655252,1751267477371,-2335.32,0.00016986,2]
[368655253,1751267477381,-1036.99,0.00016986,2]
[368655254,1751267477391,-490.0,0.00016986,2]
[368655255,1751267477400,-606.20853632,0.00016986,2]
[368655256,1751267477410,-2536.78,0.00016986,2]
[368655257,1751267477420,-1087.96,0.00016986,2]
[368655258,1751267477429,-2360.29,0.00016986,2]
[368655259,1751267477439,-2537.09,0.00016986,2]
[368655260,1751267477448,-688.4,0.00016986,2]
[368655261,1751267477457,-3318.39,0.00016986,2]
[368655262,1751267477467,-1600.14,0.00016986,2]
[368655263,1751267477476,-490.0,0.00016986,2]
[368655264,1751267477486,-1257.41,0.00016986,2]
[368655265,1751267477495,-490.0,0.00016986,2]
[368655266,1751267477505,-490.0,0.00016986,2]
[368655267,1751267477514,-3232.03,0.00016986,2]
[368655268,1751267477524,-545.56,0.00016986,2]
[368655269,1751267477534,-2303.92,0.00016986,2]
[368655270,1751267477543,-3139.49,0.00016986,2]
[368655271,1751267477553,-490.0,0.00016986,2]
[368655272,1751267477562,-490.0,0.00016986,2]
[368655273,1751267477572,-2308.8,0.00016986,2]
[368655274,1751267477583,-490.0,0.00016986,2]
[368655275,1751267477592,-1297.43,0.00016986,2]
[368655276,1751267477601,-490.0,0.00016986,2]
[368655277,1751267477611,-580.32,0.00016986,2]
[368655278,1751267477620,-1651.42,0.00016986,2]
[368655279,1751267477630,-1724.71,0.00016986,2]
[368655280,1751267477639,-725.93,0.00016986,2]
[368655281,1751267477649,-490.0,0.00016986,2]
[368655282,1751267477658,-1911.13,0.00016986,2]
[368655283,1751267477669,-1110.45,0.00016986,2]
[368655284,1751267477678,-1487.7,0.00016986,2]
[368655285,1751267477687,-490.0,0.00016986,2]
[368655286,1751267477835,-845.51,0.00016986,2]
[368655287,1751267477846,-490.0,0.00016986,2]
[368655288,1751267477855,-4906.72,0.00016986,2]
[368655289,1751267477865,-3491.35,0.00016986,2]
[368655290,1751267477874,-490.0,0.00016986,2]
[368655291,1751267477884,-1263.61,0.00016986,2]
[368655292,1751267477893,-2296.15,0.00016986,2]
[368655293,1751267477903,-1242.6,0.00016986,2]
[368655294,1751267477912,-490.0,0.00016986,2]
[368655295,1751267477922,-490.0,0.00016986,2]
[368655296,1751267477931,-633.74,0.00016986,2]
[368655297,1751267477941,-26512.68,0.00016986,2]
[368655298,1751267477951,-3323.33,0.00016986,2]
[368655299,1751267477960,-1952.89,0.00016986,2]
[368655300,1751267477970,-705.18,0.00016986,2]
[368655301,1751267477980,-490.0,0.00016986,2]